Cogmind - Beta 9.3 @@@ ROGUE MODE // 2020.01.04 @ 13:17:27 Player: winny Result: Destroyed by G-34 Mercenary with Small Laser Performance ------------- Evolutions (0) 0 Regions Visited (4) 800 Robots Destroyed (16) 80 Value Destroyed (472) 472 Prototype IDs (0) 0 Alien Tech Used (0) 0 Bonus (35) 35 TOTAL SCORE: 1387 Bonus ------- Follower Combat Kills 35 Cogmind --------- Core Integrity 0/250 Matter 300/300 Energy 100/100 System Corruption 4% Temperature Cool (6) Movement Treading (160) Location -9/Mines Parts ------- > --- POWER (1) -------- (None) > --- PROPULSION (2) --- Light Treads > --- UTILITY (2) ------ Medium Storage Unit Melee Analysis Suite > --- WEAPON (2) ------- (None) > --- INVENTORY (8) ---- Improved Trap Extractor Electrolaser Light Assault Rifle Makeshift Shrapnel Gun Assault Cannon Peak State ------------ > --- POWER ------------ Ion Engine > --- PROPULSION ------- Aluminum Leg Carbon-fiber Leg > --- UTILITY ---------- Medium Storage Unit Melee Analysis Suite > --- WEAPON ----------- Heavy Mace Great Maul > --- INVENTORY -------- Ion Engine Light Treads Improved Trap Extractor Electrolaser Light Assault Rifle Makeshift Shrapnel Gun Assault Cannon Grenade Launcher [Rating: 16] Favorites ----------- Power Ion Engine Engine Ion Engine Propulsion Aluminum Leg Treads Light Treads Leg Aluminum Leg Utility Medium Storage Unit Device Sensor Array Storage Medium Storage Unit Processor Melee Analysis Suite Weapon Light Assault Rifle Ballistic Gun Light Assault Rifle Launcher Grenade Launcher Impact Weapon Heavy Mace Build | -11 -10 -10 -10 -9 ------- Run | Scr Mat Min Exi Min Slots Evolved . | . . . . . Power . | . . . . . Propulsion . | . . . . . Utility . | . . . . . Weapon . | . . . . . Parts Attached 16 | . 2 9 1 4 Power 2 | . . 1 . 1 Engine 2 | . . 1 . 1 Core . | . . . . . Reactor . | . . . . . Propulsion 3 | . . 1 1 1 Treads 1 | . . . . 1 Leg 2 | . . 1 1 . Wheel . | . . . . . Hover . | . . . . . Flight . | . . . . . Utility 3 | . 2 1 . . Device 1 | . 1 . . . Storage 1 | . 1 . . . Processor 1 | . . 1 . . Hackware . | . . . . . Protection . | . . . . . Artifact . | . . . . . Weapon 8 | . . 6 . 2 Energy Gun . | . . . . . Energy Cannon . | . . . . . Ballistic Gun 2 | . . 2 . . Ballistic Cannon . | . . . . . Launcher 3 | . . 2 . 1 Special Weapon . | . . . . . Impact Weapon 3 | . . 2 . 1 Slashing Weapon . | . . . . . Piercing Weapon . | . . . . . Special Melee Weapon . | . . . . . Unidentified Prototypes . | . . . . . Parts Lost 6 | . . . . 6 Power 2 | . . . . 2 Propulsion 2 | . . . . 2 Utility . | . . . . . Weapon 2 | . . . . 2 Highest Loss Streak 4 | . . . . 4 Average Slot Usage (%) 96 | . 91 100 100 84 Engine 13 | . 14 14 14 13 Treads 1 | . . . . 10 Leg 24 | . 28 28 28 3 Device 4 | . 5 10 . . Storage 14 | . 14 14 14 14 Processor 8 | . . 3 14 14 Ballistic Gun 11 | . 28 21 . . Impact Weapon 16 | . . 6 28 27 Naked Turns . | . . . . . Heaviest Build 20 | 11 16 20 20 20 Greatest Support 25 | 20 20 20 25 25 Greatest Overweight (x) 6 | . . . . 6 Average Overweight (x) . | . . . . . Largest Inventory Capacity 10 | 6 10 8 8 8 Average Capacity 7 | 6 7 8 8 8 Most Carried 8 | 6 6 8 8 8 Average Carried 6 | 6 4 6 7 5 Final Capacity 8 | 6 8 8 8 8 Final Carried 8 | 6 5 8 8 5 Class Distribution -------------------- 100% | Mutant Dominant Class ---------------- Mutant | -10/Materials Mutant | -10/Mines Mutant | -10/Exiles Mutant | -9/Mines Resources | -11 -10 -10 -10 -9 ----------- Run | Scr Mat Min Exi Min Matter Collected 423 | 200 . 183 20 20 Remotely . | . . . . . Salvage Created 997 | . . 212 590 195 Parts 15 | . . 10 5 . Haulers Intercepted . | . . . . . Recyclers Shooed 1 | . . 1 . . Parts Field Recycled . | . . . . . Retrieved Matter . | . . . . . Parts Self-Destructed . | . . . . . Prevented . | . . . . . Kills | -11 -10 -10 -10 -9 ------- Run | Scr Mat Min Exi Min Combat Hostiles Destroyed 14 | . . 8 3 3 Melee 2 | . . 1 . 1 Guns 3 | . . 3 . . AOE 3 | . . 3 . . Classes Destroyed 5 | . . 2 1 2 Worker 1 | . . . . 1 Tunneler 1 | . . . . 1 Swarmer 3 | . . 3 . . Grunt 10 | . . 5 2 3 Hunter 1 | . . . 1 . Best Kill Streak 3 | . . 3 1 3 Combat Bots Only 3 | . . 3 1 3 Max Kills in Single Turn 2 | . . 2 1 1 Gunslinging . | . . . . . Exploded 2 | . . 2 . . Melee 1 | . . 1 . 1 Uniques/NPCs Destroyed . | . . . . . Combat | -11 -10 -10 -10 -9 -------- Run | Scr Mat Min Exi Min Damage Taken 1152 | . 11 434 . 707 Core 250 | . . 99 . 151 Absorbed by Shields . | . . . . . Core Remaining (%) 100 | 100 . . . . Volleys Fired 28 | . 6 22 . . Largest 2 | . 2 2 . . Hottest 50 | . 40 50 . . Shots Fired 56 | . 12 44 . . Gun 53 | . 12 41 . . Cannon . | . . . . . Launcher 3 | . . 3 . . Special . | . . . . . Kinetic 53 | . 12 41 . . Thermal . | . . . . . Explosive 3 | . . 3 . . Electromagnetic . | . . . . . Robot Hit Streak 7 | . 3 7 . . Robot Miss Streak 6 | . 5 6 . . Penetration Max . | . . . . . Secondary Targets . | . . . . . Shots Hit Robots 81 | . 4 31 28 18 Core Hits 20 | . 1 13 5 1 Critical Hits 2 | . . 2 . . Critical Kills 1 | . . 1 . . Critical Parts Destroyed 1 | . . 1 . . Melee Attacks 61 | . . 7 30 24 Impact 61 | . . 7 30 24 Slashing . | . . . . . Piercing . | . . . . . Sneak Attacks 5 | . . . 3 2 Combat Hostiles 3 | . . . 3 . Follow-up Attacks 5 | . . . 4 1 Damage Inflicted 4050 | . 23 509 2895 623 Guns 200 | . 23 177 . . Cannons . | . . . . . Explosions 198 | . . 198 . . Melee 3652 | . . 134 2895 623 Ramming . | . . . . . Kinetic 200 | . 23 177 . . Thermal . | . . . . . Explosive 198 | . . 198 . . Electromagnetic . | . . . . . Impact 3652 | . . 134 2895 623 Slashing . | . . . . . Piercing . | . . . . . Highest Corruption 4 | . . . . 4 Average Corruption 4 | . . . . 4 Corruption Purged . | . . . . . Effects 1 | . . . . 1 Parts Rejected 1 | . . . . 1 Overload Shots . | . . . . . Overflow Damage 1283 | . . 4 1146 133 Projectiles . | . . . . . Explosions . | . . . . . Melee 1283 | . . 4 1146 133 Knockbacks 16 | . . 1 13 2 Impact 16 | . . 1 13 2 Kinetic . | . . . . . Secondary . | . . . . . Self-Inflicted Damage . | . . . . . Shots . | . . . . . Rammed . | . . . . . Targets Rammed . | . . . . . Kicked . | . . . . . Crushed . | . . . . . Highest Temperature 44 | . . 44 . 3 Average Temperature 11 | . . 13 . 2 Received Heat Transfer 573 | . 6 198 . 369 Siege Activations . | . . . . . Robots Corrupted . | . . . . . Combat Hostiles . | . . . . . Parts Fried 15 | . . 2 7 6 Impact Corruptions 39 | . . 1 31 7 Robots Melted . | . . . . . Combat Hostiles . | . . . . . Parts Melted . | . . . . . Heat Transferred . | . . . . . Parts Sabotaged . | . . . . . Parts Stolen . | . . . . . Parts Stripped . | . . . . . Power Chain Reactions . | . . . . . Missiles Intercepted . | . . . . . Alert | -11 -10 -10 -10 -9 ------- Run | Scr Mat Min Exi Min Peak Influence 120 | . . 120 . 70 Average Influence 55 | . . 69 . 55 Maximum Alert Level . | . . . . . Low Security (%) 100 | 100 100 100 . 100 Level 1 . | . . . . . Level 2 . | . . . . . Level 3 . | . . . . . Level 4 . | . . . . . Level 5 . | . . . . . High Security . | . . . . . Max Security . | . . . . . Squads Dispatched 1 | . 1 . . . Investigation . | . . . . . Extermination . | . . . . . Reinforcement 1 | . 1 . . . Assault . | . . . . . Garrison . | . . . . . Intercept . | . . . . . Construction Impeded . | . . . . . Haulers Reinforced . | . . . . . Stealth | -11 -10 -10 -10 -9 --------- Run | Scr Mat Min Exi Min Distress Signals 1 | . 1 . . . Communications Jammed . | . . . . . Distress Signals . | . . . . . Times Spotted 18 | . 4 9 . 5 Peak Tracking Total 3 | . 2 3 . 3 Tactical Retreats 1 | . . . . 1 Traps | -11 -10 -10 -10 -9 ------- Run | Scr Mat Min Exi Min Traps Triggered . | . . . . . Indirectly . | . . . . . Trap Hack Attempts . | . . . . . Triggered . | . . . . . Disarmed . | . . . . . Reprogrammed . | . . . . . Reused . | . . . . . Traps Extracted . | . . . . . Installed . | . . . . . Triggered . | . . . . . Machines | -11 -10 -10 -10 -9 ---------- Run | Scr Mat Min Exi Min Machines Disabled 1 | . . . 1 . Max in Single Turn 1 | . . . 1 . Machines Sabotaged . | . . . . . Garrisons Compromised . | . . . . . Overloaded Fab Kills . | . . . . . Fab Network Shutdowns . | . . . . . Hacking | -11 -10 -10 -10 -9 --------- Run | Scr Mat Min Exi Min Machines Accessed 5 | . . 1 4 . Terminals . | . . . . . Fabricators . | . . . . . Repair Stations . | . . . . . Recycling Units . | . . . . . Scanalyzers . | . . . . . Garrison Access . | . . . . . Total Hacks 49 | . . 1 48 . Successful 49 | . . 1 48 . Failed . | . . . . . Catastrophic . | . . . . . Database Lockouts . | . . . . . Manual . | . . . . . Terminals . | . . . . . Fabricators . | . . . . . Repair Stations . | . . . . . Recycling Units . | . . . . . Scanalyzers . | . . . . . Garrison Access . | . . . . . Terminal Hacks 49 | . . 1 48 . Record 48 | . . . 48 . Open Door 1 | . . 1 . . Fabricator Hacks . | . . . . . Repair Station Hacks . | . . . . . Recycling Unit Hacks . | . . . . . Scanalyzer . | . . . . . Garrison Access Hacks . | . . . . . Unauthorized Hacks . | . . . . . Terminals . | . . . . . Fabricators . | . . . . . Repair Stations . | . . . . . Recycling Units . | . . . . . Scanalyzers . | . . . . . Garrison Access . | . . . . . Data Cores Recovered . | . . . . . Used . | . . . . . Hacking Detections . | . . . . . Full Trace Events . | . . . . . Feedback Events . | . . . . . Feedback Blocked . | . . . . . Robot Schematics Acquired . | . . . . . Robots Built . | . . . . . Matter . | . . . . . Time . | . . . . . Total Robot Build Rating . | . . . . . Part Schematics Acquired . | . . . . . Parts Built . | . . . . . Matter . | . . . . . Time . | . . . . . Total Part Build Rating . | . . . . . Parts Repaired . | . . . . . Time . | . . . . . Parts Recycled . | . . . . . Recycled Matter . | . . . . . Retrieved Matter . | . . . . . Retrieved Components . | . . . . . Parts Scanalyzed . | . . . . . Part Schematics Acquired . | . . . . . Parts Damaged . | . . . . . Bothacking | -11 -10 -10 -10 -9 ------------ Run | Scr Mat Min Exi Min Used RIF Installer . | . . . . . Robots Hacked . | . . . . . Non-combat . | . . . . . Combat . | . . . . . Robot Hacks Applied . | . . . . . Relay Couplers Released . | . . . . . Robots Rewired . | . . . . . Allies Hacked . | . . . . . Hacks Repelled . | . . . . . Allies | -11 -10 -10 -10 -9 -------- Run | Scr Mat Min Exi Min Total Allies 3 | . . 3 . . Largest Group 3 | . . 3 . . Highest-Rated Group 40 | . . 40 . . Highest-Rated Ally 16 | . . 16 . . Total Orders 6 | . . 6 . . GOTO 3 | . . 3 . . FOLLOW 3 | . . 3 . . Ally Attacks 10 | . . 10 . . Total Damage 103 | . . 103 . . Kills 1 | . . 1 . . Allies Corrupted . | . . . . . Allies Melted . | . . . . . Intel | -11 -10 -10 -10 -9 ------- Run | Scr Mat Min Exi Min Robot Analysis Total . | . . . . . Derelict Logs Recovered 3 | . . 2 . 1 Drone Launches . | . . . . . Drone Recoveries . | . . . . . Exploration | -11 -10 -10 -10 -9 ------------- Run | Scr Mat Min Exi Min Turns Passed 1887 | 5 191 724 702 265 Spaces Moved 1285 | 5 141 501 520 118 Core 6 | . . . . 6 Treads 108 | . . . . 108 Legs 1171 | 5 141 501 520 4 Wheels . | . . . . . Hover . | . . . . . Flight . | . . . . . Fastest Speed 120 | 120 120 120 120 120 Average Speed 124 | 120 120 120 120 168 Slowest Speed 350 | 120 120 120 120 350 Overloaded Moves . | . . . . . Propulsion Burnouts . | . . . . . Robots Hopped . | . . . . . Cave-ins Triggered . | . . . . . Exploration Rate (%) 45 | 2 23 80 91 33 Regions Visited 4 Branch Regions 3 Pre-discovered Areas 1 | . . . 1 . Known Exits Taken . | . . . . . Unknown Exits Taken 4 | 1 1 1 1 . Scrap Searched 1 | . . 1 . . Spaces Dug . | . . . . . Terrain Destroyed 20 | . . 20 . . Melee . | . . . . . Projectile . | . . . . . AOE 20 | . . 20 . . Actions | -11 -10 -10 -10 -9 --------- Run | Scr Mat Min Exi Min Total 1421 | 4 154 573 548 142 Wait 25 | . . 25 . . Move 1281 | 4 140 500 519 118 Hop . | . . . . . Pick Up 8 | . 2 5 1 . Fast Attach 3 | . 2 1 . . Attach 3 | . . . . 3 Detach . | . . . . . Swap 10 | . . 8 1 1 Drop 11 | . 4 5 2 . Fire 28 | . 6 22 . . Melee 51 | . . 7 24 20 Ram . | . . . . . Kick . | . . . . . Crush . | . . . . . Escape Stasis . | . . . . . Rewire 1 | . . . 1 . Trap . | . . . . . Miscellaneous . | . . . . . Route ------- -11/Scrapyard -10/Materials -10/Mines (discovered 2 exits: [*Mat] / *Exi) -10/Exiles (discovered 2 exits: [*Min x2]) -9/Mines (discovered 1 exit: [*Mat]) History --------- Turn | Location | Event 1 | -11/Scrapyard | Discovered new exit (range 3) 6 | -11/Scrapyard | Entered Materials 23 | -10/Materials | Discovered new exit (range 14) 197 | -10/Materials | Entered Mines 221 | -10/Mines | Met a Derelict bent on vengeance 274 | -10/Mines | Learned Materials garrison access intel 331 | -10/Mines | Build established: Mutant 546 | -10/Mines | Assisted by bots powering up and referring to "LRC-V3" 547 | -10/Mines | Learned Materials terminal intel 656 | -10/Mines | Met a Derelict who couldn't figure out how to use a Trap Extractor 753 | -10/Mines | Discovered new exit (range 8) 915 | -10/Mines | Deemed a non-threat by the Exiles lab entrance 915 | -10/Mines | Discovered new exit (range 5) 921 | -10/Mines | Entered Exiles 921 | -10/Exiles | Found Exiles lab destroyed 942 | -10/Exiles | Discovered new exit (range 15) 1103 | -10/Exiles | Learned location of Zion (-7) 1611 | -10/Exiles | Discovered new exit (range 12) 1623 | -10/Exiles | Entered Mines 1640 | -9/Mines | Core integrity fell below 50% 1660 | -9/Mines | Core integrity fell below 20% 1692 | -9/Mines | Lost 4 parts (1p2n1w) 1725 | -9/Mines | Learned location of 1 exit from Proximity Caves 1863 | -9/Mines | Discovered new exit (range 8) 1888 | -9/Mines | Destroyed by G-34 Mercenary with Small Laser Last Messages --------------- 01742_ K-01 Serf system corrupted by crushing effect. 01742_ K-01 Serf knocked back. 01743_ K-01 Serf system terminally corrupted. 01743_ Wheel fried. 01803_ Sneak attack on T-07 Excavator. 01803_ Destroyed Wheel. 01803_ Destroyed Mining Laser. 01803_ T-07 Excavator system corrupted by crushing effect. 01803_ T-07 Excavator knocked back. 01804_ T-07 Excavator system terminally corrupted. 01804_ Seismic Analyzer fried. 01804_ Imp. Terrain Scanner fried. 01828_ T-07 Excavator is excavating. 01863_ EXIT=FOUND 01870_ Hvy. Mace destroyed. 01870_ System corrupted by crushing effect (+4). 01871_ Destroyed Hammer. 01871_ B-36 Bruiser system corrupted by crushing effect. 01876_ Ion Engine destroyed. 01887_ System corrupted: Great Maul rejected. Map ----- +----------------------------------------------------+ | | | ??????????????????????????????? | | ??????????????????????????????? | | ??????????????????????????????? | | ??????????????????????????????? | | #########?????????????????????? | | # #?????????????????????? | | # #?????????????????????? | | # #?????????????????????? | | # #?????????????????????? | | #% #?????????????????????? | | % """ #?????????????????????? | | #% """ #?????????????????????? | | # """ #?????????????????????? | | # #?????????????????????? | | ##### ###?###?????????????????? | | ????# #??# ##????????????????? | | ????# ### #????????????????? | | ##### #?????????######?? | | ##?????????# #?? | | ##??????????# < #?? | | # ### ##??????????# #?? | | # #?##% #??????????# #?? | | # #### #??????????# #?? | | # ##??????????#g ??? | | ###### ##????????????#@#???? | | ?????## #?????????????# #???? | | ??????## #????????###### #???? | | ???????# #????????# #???? | | ???????# #????????# #???? | | ???????# #????????# #####???? | | ???????# #????????# #???????? | | ???????# #????????# #???????? | | ???????# #????????# #???????? | | ??###### #????????# #???????? | | ??# #????????# #???????? | | ??# #######????????# #???????? | | ??# #??????????????# #???????? | | ??# #??????????????# #???????? | | ??# #??????????????# #???????? | | ??# #??????????????# #???????? | | ??# #??????????????# #???????? | | ??# #??????????????# #???????? | | ??# ####???????????# #???????? | | ?## ###?????????# #???????? | | ## ##????????# #???????? | | #??####??# #???????? | | ### #?## #### #???????? | | ??## ##?# #???????? | | ???# #??# #???????? | +----------------------------------------------------+ Best States ------------- Heat Dissipation 25 Energy Generation 10 Energy Capacity 250 Matter Stores 300 Matter Capacity 300 Sight Range 16 Robot Scan Range 10 Terrain Scan Density 10 Evasion (%) 40 Melee Accuracy 5 Recoil Reduction 1 Item Schematics ----------------- None Robot Schematics ------------------ None Fabricated ------------ Nothing Alien Tech Used ----------------- None Achievements -------------- None Challenges ------------ None Game ------ Seed BiometalWeaponShield Manual? 0 Play Time 00:21:27 Cumulative 17.6 hours Start 2020.01.04 @ 12:56:58 End 2020.01.04 @ 13:17:27 Sessions 1 Manual Loads 0 Difficulty Rogue Special Mode None Game No. 9 Rogue 8 Adventurer 1 Explorer 0 Win Type - Total 0 Types 0/0/0/0/0/0/0 Lore% 12 Gallery% 18 Achievement% 16 Wizard Run 0 Options --------- ASCII 0 Keyboard 1 Movement Vi Keybinds 0 Fullscreen 1 Font 18/X11Bold Map View 76x50 Tactical HUD 1 Map Filters NONE Filters NONE Steam 1 RUN: 8d0f6f76-aba2-4f59-a4a6-6bef0cfc3a05